bitfinex/quotes_SOLUSD_20220208
["timestamp","ask_amount","ask_price","bid_price","bid_amount"]
[1644356675238,46.9175,113.43,113.35,58.67998479]
[1644356677335,44.47472946,113.42,113.35,58.67998479]
[1644356677938,46.9175,113.43,113.35,58.67998479]
[1644356678137,46.9175,113.43,113.35,59.92611805]
[1644356678837,108.0509,113.49,113.35,70.67611805]
[1644356679039,36.51675852,113.48,113.36,23.6394]
[1644356679239,49.74195852,113.48,113.39,13.2252]
[1644356679441,24.3057,113.47,113.4,35.70829728]
[1644356679640,38.87061741,113.46,113.4,35.70829728]
[1644356679839,24.3057,113.47,113.4,35.95829728]
[1644356680042,24.3057,113.47,113.4,47.84729728]
[1644356680644,24.3057,113.47,113.41,13.2252]
[1644356680842,24.3057,113.47,113.42,37.70780634]
[1644356681043,40.64702831,113.46,113.41,0.25]
[1644356681944,40.64702831,113.46,113.4,55.80903531]
[1644356682144,40.64702831,113.46,113.4,56.05903531]
[1644356683048,40.64702831,113.46,113.4,13.4754]
[1644356686048,40.64702831,113.46,113.4,49.52681056]
[1644356686247,40.64702831,113.46,113.4,13.4754]
[1644356686648,46.64702831,113.46,113.4,13.4754]
[1644356686846,40.64702831,113.46,113.4,13.4754]
[1644356691652,62.08392831,113.46,113.39,13.2275]
[1644356691854,62.08392831,113.46,113.36,73.7298]
[1644356691855,70.1916838,113.46,113.33,22.5581]
[1644356692054,12.71,113.45,113.33,53.3086]
[1644356692254,12.71,113.45,113.3,3.72367635]
[1644356692454,50.01485549,113.44,113.31,2.91858703]
[1644356692657,47.28375526,113.43,113.3,40.01403585]
[1644356692855,23.6558,113.42,113.29,2.47754309]
[1644356693053,25.76355549,113.42,113.29,2.47754309]
[1644356693257,22.70115962,113.41,113.28,2.49957562]
[1644356693556,24.80891511,113.41,113.27,2.47754309]
[1644356693759,158.9,113.39,113.25,2.47754309]
[1644356693955,13.2459,113.35,113.25,2.47754309]
[1644356694154,34.89802513,113.34,113.25,2.47754309]
[1644356694359,44.71578062,113.34,113.25,4.97843144]
[1644356694755,34.19818967,113.32,113.25,4.97843144]
[1644356694954,57.75718967,113.32,113.25,4.97843144]
[1644356695155,57.75718967,113.32,113.25,2.44814552]
[1644356695156,71.00228967,113.32,113.25,2.44814552]
[1644356695357,13.2451,113.32,113.25,4.94903387]
[1644356695556,22.6162,113.33,113.25,1.49613326]
[1644356695757,22.6162,113.33,113.26,2.50088835]
[1644356696157,22.6162,113.33,113.26,8.75088835]
[1644356696361,36.47257197,113.32,113.28,13.2398]
[1644356696558,36.47257197,113.32,113.28,19.2398]
[1644356696757,36.47257197,113.32,113.28,19.4898]
[1644356698988,36.47257197,113.32,113.28,19.2398]
[1644356700384,36.47257197,113.32,113.28,19.4898]
[1644356701487,36.47257197,113.32,113.28,58.50973103]
[1644356701684,36.47257197,113.32,113.28,19.4898]
[1644356701985,22.6162,113.33,113.28,19.4898]
[1644356702185,22.6162,113.33,113.29,2.5040141]
[1644356702587,13.239,113.35,113.29,15.9930141]
[1644356702789,23.4237,113.39,113.29,15.9930141]
[1644356702986,40.57321758,113.37,113.3,43.10786185]
[1644356703387,40.57321758,113.37,113.3,49.35786185]
[1644356703786,40.57321758,113.37,113.32,13.2341]
[1644356704186,40.57321758,113.37,113.32,52.67654857]
[1644356705289,40.57321758,113.37,113.31,13.2365]
[1644356705490,1.60775549,113.36,113.27,1.24327622]
[1644356705688,25.09555549,113.36,113.28,2.50153703]
[1644356705889,25.09555549,113.36,113.25,3.71631464]
[1644356706289,42.35912615,113.35,113.26,40.07229319]
[1644356706491,55.59802615,113.35,113.28,13.2401]
[1644356706890,55.59802615,113.35,113.28,52.14435384]
[1644356707490,55.59802615,113.35,113.28,13.4901]
[1644356707890,55.59802615,113.35,113.28,13.2401]
[1644356708291,55.59802615,113.35,113.28,13.4901]
[1644356709393,55.59802615,113.35,113.28,13.2401]
[1644356709594,55.59802615,113.35,113.28,13.4901]
[1644356710392,55.59802615,113.35,113.28,13.2401]
[1644356711394,61.59802615,113.35,113.28,13.2401]
[1644356711894,69.39802615,113.35,113.28,13.2401]
[1644356712095,84.21578164,113.35,113.24,3.71631464]
[1644356712297,106.89828164,113.35,113.24,3.71631464]
[1644356712497,106.89828164,113.35,113.23,11.2545826]
[1644356712897,106.89828164,113.35,113.23,3.74031464]
[1644356713097,274.99499682,113.35,113.24,2.50475599]
[1644356713296,204.50499682,113.35,113.23,6.24507063]
[1644356713598,204.50499682,113.35,113.23,0.024]
[1644356713599,121.0,113.3,113.23,0.024]
[1644356713795,54.27474268,113.29,113.21,3.71631464]
[1644356713996,79.33939817,113.29,113.22,0.024]
[1644356714198,2.10775549,113.28,113.22,0.024]
[1644356714394,50.80305427,113.27,113.22,0.024]
[1644356714596,13.2517,113.26,113.21,3.74031464]
[1644356714795,12.71,113.26,113.2,3.71631464]
[1644356715195,2.10775549,113.25,113.2,3.71631464]
[1644356715797,60.75386505,113.24,113.2,3.71631464]
[1644356715996,70.89486505,113.24,113.2,3.71631464]
[1644356716196,46.0,113.23,113.15,18.26341197]
[1644356716397,46.0,113.23,113.19,3.75716929]
[1644356716597,85.10775549,113.22,113.13,16.21125874]
[1644356716801,12.71,113.21,113.13,16.21125874]
[1644356716999,23.291,113.21,113.13,16.21125874]
[1644356717197,39.12938979,113.2,113.13,6.19385774]
[1644356717597,39.12938979,113.2,113.13,0.25]
[1644356717798,39.12938979,113.2,113.12,21.47077071]
[1644356718399,13.2589,113.18,113.13,38.19719381]
[1644356718599,40.29391747,113.18,113.13,38.19719381]
[1644356718801,15.10519206,113.18,113.14,5.00951197]
[1644356719200,15.10519206,113.18,113.14,0.25]
[1644356720202,15.10519206,113.18,113.12,21.47077071]
[1644356720404,24.28819206,113.18,113.12,21.47077071]
[1644356720703,37.54639206,113.18,113.12,21.47077071]
[1644356721204,37.54639206,113.18,113.12,21.22077071]
[1644356721409,138.0,113.17,113.08,9.91017238]
[1644356721608,13.2631,113.15,113.07,62.24808004]
[1644356721807,12.71,113.14,113.07,62.24808004]
[1644356722010,12.71,113.14,113.04,9.91017238]
[1644356722208,41.66780956,113.13,113.04,9.91017238]
[1644356722405,54.37780956,113.13,113.04,9.91017238]
[1644356722607,47.96050934,113.1,113.04,9.91017238]
[1644356722806,57.64850934,113.1,113.01,198.458864]
[1644356723007,57.64850934,113.1,113.03,6.0]
[1644356723229,57.64850934,113.1,113.01,191.189664]
[1644356723605,57.64850934,113.1,113.02,34.70182431]
[1644356723806,70.35850934,113.1,113.02,34.70182431]
[1644356724007,70.35850934,113.1,113.02,40.70182431]
[1644356724209,70.35850934,113.1,113.01,72.689664]
[1644356724408,85.73426483,113.1,113.01,72.689664]
[1644356724613,85.73426483,113.1,113.01,62.77949162]
[1644356725608,91.73426483,113.1,113.01,62.77949162]
[1644356726208,91.73426483,113.1,112.98,23.18367238]
[1644356726409,139.53006483,113.1,113.0,6.0]
[1644356726610,139.53006483,113.1,112.98,29.18367238]
[1644356727009,139.53006483,113.1,112.98,15.91017238]
[1644356727211,139.53006483,113.1,112.99,36.26361357]
[1644356727410,139.53006483,113.1,112.98,15.91017238]
[1644356727608,298.43006483,113.1,112.98,15.91017238]
[1644356727808,298.43006483,113.1,112.98,6.25]
[1644356728411,298.43006483,113.1,112.99,47.59422144]
[1644356728611,298.43006483,113.1,112.99,53.59422144]
[1644356728809,298.43006483,113.1,112.99,53.84422144]
[1644356729411,296.32230934,113.1,112.99,47.59422144]
[1644356729714,286.63430934,113.1,112.99,47.59422144]
[1644356729910,286.63430934,113.1,112.99,60.86592144]
[1644356730516,288.74206483,113.1,112.99,60.86592144]
[1644356730734,288.74206483,113.1,113.0,0.024]
[1644356730917,286.63430934,113.1,113.0,0.024]
[1644356732218,288.74206483,113.1,113.0,0.024]
[1644356734318,286.63430934,113.1,113.0,0.024]
[1644356734822,268.9839574,113.1,113.0,0.024]
[1644356735621,271.09171289,113.1,113.0,0.024]
[1644356735920,268.9839574,113.1,113.0,0.024]
[1644356736722,262.9839574,113.1,113.0,0.024]
[1644356736923,265.09171289,113.1,113.0,0.024]
[1644356737722,265.09171289,113.1,113.0,13.2948]
[1644356737921,265.09171289,113.1,113.01,48.52682161]
[1644356740445,271.09171289,113.1,113.01,48.52682161]
[1644356741743,271.09171289,113.1,113.01,48.77682161]
[1644356743546,112.19171289,113.1,113.01,48.77682161]
[1644356744145,106.19171289,113.1,113.01,48.77682161]
[1644356744346,13.2686,113.12,113.01,62.04682161]
[1644356744546,22.8424,113.12,113.01,62.04682161]
[1644356745349,22.8424,113.12,113.01,63.30902955]
[1644356746250,61.46613294,113.12,113.01,63.30902955]
[1644356746650,61.46613294,113.12,113.01,62.04682161]
[1644356747650,22.8424,113.12,113.01,62.04682161]
[1644356747854,12.71,113.15,113.02,1.26220794]
[1644356748051,61.8542,113.17,113.05,13.264]
[1644356748251,61.8542,113.17,113.06,0.024]
[1644356748450,34.48351974,113.16,113.06,45.5468575]
[1644356748650,34.48351974,113.16,113.07,0.024]
[1644356749652,34.48351974,113.16,113.07,13.2867]
[1644356749955,48.504,113.17,113.08,0.024]
[1644356750756,12.71,113.18,113.08,13.2856]
[1644356750956,46.23931574,113.18,113.09,43.74694019]
[1644356751155,46.23931574,113.18,113.1,0.024]
[1644356752757,59.50071574,113.18,113.1,0.024]
[1644356753656,46.23931574,113.18,113.1,0.024]
[1644356755260,28.59532531,113.18,113.1,13.2837]
[1644356755463,28.59532531,113.18,113.11,43.73415638]
[1644356755660,28.59532531,113.18,113.11,43.75815638]
[1644356755859,28.59532531,113.18,113.11,44.00815638]
[1644356757260,35.7502,113.19,113.11,44.00815638]
[1644356757465,12.71,113.19,113.11,44.00815638]
[1644356757665,37.9667,113.21,113.18,1.25506675]
[1644356757666,6.0,113.2,113.18,1.25506675]
[1644356757866,24.7067,113.21,113.19,4.28726672]
[1644356758068,59.9578,113.24,113.2,1.25506675]
[1644356758265,37.4062,113.24,113.21,41.23382248]
[1644356758467,12.71,113.24,113.21,41.23382248]
[1644356758965,12.71,113.24,113.2,1.25506675]
[1644356760066,40.25974912,113.24,113.2,1.25506675]
[1644356760668,27.54974912,113.24,113.2,1.25506675]
[1644356762169,37.2568,113.25,113.2,1.25506675]
[1644356763272,79.67926477,113.25,113.2,42.63968284]
[1644356763468,37.2568,113.25,113.2,42.63968284]
[1644356763869,24.3242,113.25,113.2,42.63968284]
[1644356764070,37.0697,113.28,113.2,42.63968284]
[1644356764273,37.0697,113.28,113.21,1.25506675]
[1644356764490,39.89956347,113.27,113.21,1.25506675]
[1644356764689,39.89956347,113.27,113.2,42.63968284]
[1644356765089,39.89956347,113.27,113.2,1.25506675]
[1644356765289,24.63215549,113.26,113.2,1.25506675]
[1644356765690,24.63215549,113.26,113.19,1.25506675]
[1644356766093,35.49473427,113.25,113.19,49.18723063]
[1644356766892,22.5244,113.26,113.19,49.18723063]
[1644356767093,37.0697,113.28,113.19,49.43723063]
[1644356767894,36.91297756,113.27,113.19,49.43723063]
[1644356768097,36.91297756,113.27,113.19,62.68663063]
[1644356768498,60.37847756,113.27,113.19,62.68663063]
[1644356770295,60.37847756,113.27,113.19,62.43663063]
[1644356771697,23.4655,113.27,113.19,62.68663063]
[1644356774899,37.0697,113.28,113.2,1.25506675]
[1644356775099,37.0697,113.28,113.21,13.2466]
[1644356775299,104.304,113.3,113.21,13.4966]
[1644356775503,104.304,113.3,113.22,47.84220531]
[1644356775702,104.304,113.3,113.22,48.09220531]
[1644356776203,30.6362,113.3,113.22,48.09220531]
[1644356776800,24.6362,113.3,113.22,61.33770531]
[1644356777001,23.7623,113.33,113.22,72.87695214]
[1644356777203,23.7623,113.33,113.22,74.13201889]
[1644356778201,60.82763448,113.33,113.22,63.85501889]
[1644356779002,22.5914,113.32,113.22,63.85501889]
[1644356779403,22.5914,113.32,113.22,63.60501889]
[1644356780803,22.5914,113.32,113.22,63.85501889]
[1644356784712,22.5914,113.32,113.23,1.25506675]
[1644356784909,22.5914,113.32,113.25,13.2425]
[1644356785111,22.5914,113.32,113.26,44.0570314]
[1644356786112,23.84712322,113.32,113.26,44.0570314]
[1644356787111,1.25572322,113.31,113.26,44.0570314]
[1644356789314,1.25572322,113.31,113.26,44.3070314]
[1644356791018,1.25572322,113.31,113.26,44.0570314]
[1644356791718,40.93148951,113.31,113.24,13.2439]
[1644356791917,40.93148951,113.31,113.2,50.1504]
[1644356792115,40.93148951,113.31,113.18,2.51731358]
[1644356792116,1.25572322,113.29,113.18,2.51731358]
[1644356792316,1.25572322,113.28,113.17,1.25506675]
[1644356792516,1.25572322,113.27,113.17,1.25506675]
[1644356792716,35.31299416,113.26,113.18,13.2512]
[1644356792915,35.31299416,113.26,113.17,46.97279711]
[1644356793317,22.9574,113.27,113.19,1.25506675]
[1644356793516,22.9574,113.27,113.2,1.25506675]
[1644356793715,22.9574,113.27,113.19,1.25506675]
[1644356794319,62.33930143,113.26,113.2,40.87257565]
[1644356795017,75.04930143,113.26,113.2,40.87257565]
[1644356796919,37.3001,113.26,113.2,40.87257565]
[1644356797118,22.9574,113.27,113.2,41.12257565]
[1644356797318,1.25572322,113.3,113.2,41.12257565]
[1644356797518,38.14862322,113.3,113.2,41.12257565]
[1644356797718,44.14862322,113.3,113.2,41.12257565]
[1644356797917,45.87414498,113.29,113.2,41.12257565]
[1644356798117,44.14862322,113.3,113.2,41.12257565]
[1644356798519,44.14862322,113.3,113.2,54.37147565]
[1644356799317,81.96604898,113.3,113.2,54.37147565]
[1644356799717,95.21334898,113.3,113.2,54.37147565]
[1644356802622,95.21334898,113.3,113.2,54.12147565]
[1644356804126,95.21334898,113.3,113.2,60.37147565]
[1644356806145,95.21334898,113.3,113.2,54.37147565]
[1644356806345,2.10775549,113.29,113.2,54.37147565]
[1644356806545,34.77209879,113.28,113.2,54.37147565]
[1644356806749,31.43862322,113.3,113.2,144.04041192]
[1644356806750,1.25572322,113.3,113.2,144.04041192]
[1644356807047,1.25572322,113.31,113.2,162.75041192]
[1644356807247,1.25572322,113.31,113.2,74.34041192]
[1644356809250,23.6609,113.33,113.2,74.34041192]
[1644356809449,29.6609,113.33,113.2,74.34041192]
[1644356811353,35.59682678,113.32,113.2,74.34041192]
[1644356812655,35.59682678,113.32,113.2,74.09041192]
[1644356813056,59.22922678,113.32,113.2,74.09041192]
[1644356814359,59.22922678,113.32,113.2,74.34041192]
[1644356814759,23.6324,113.32,113.2,74.34041192]
[1644356815661,46.55301484,113.31,113.2,74.34041192]
[1644356815859,23.6324,113.32,113.2,74.34041192]
[1644356816959,60.11862539,113.32,113.2,74.34041192]
[1644356817263,23.6324,113.32,113.2,74.34041192]
[1644356818163,23.6324,113.32,113.2,177.05811827]
[1644356818563,23.6324,113.32,113.2,190.30985268]
[1644356819163,2.51102999,113.35,113.2,190.30985268]
[1644356819365,2.51102999,113.35,113.25,13.2383]
[1644356819565,24.605,113.35,113.25,19.2383]
[1644356819762,30.605,113.35,113.25,20.74392804]
[1644356820267,68.36800678,113.35,113.26,45.9514769]
[1644356820669,68.36800678,113.35,113.26,46.2014769]
[1644356821165,68.36800678,113.35,113.26,45.9514769]
[1644356821766,68.36800678,113.35,113.29,45.2340296]
[1644356822467,68.36800678,113.35,113.29,45.4840296]
[1644356822665,68.36800678,113.35,113.29,45.2340296]
[1644356822868,68.36800678,113.35,113.25,30.9702]
[1644356823067,68.36800678,113.35,113.28,13.2392]
[1644356824871,68.36800678,113.35,113.23,12.71]
[1644356825067,35.4658,113.34,113.2,36.0462]
[1644356825268,35.9538,113.33,113.23,44.14]
[1644356825471,48.6638,113.33,113.23,44.14]
[1644356825674,37.63129096,113.32,113.24,43.43243514]
[1644356825871,37.63129096,113.32,113.25,13.2436]
[1644356826072,37.63129096,113.32,113.26,47.37915875]
[1644356826271,37.63129096,113.32,113.25,13.2436]
[1644356827172,37.63129096,113.32,113.25,13.4936]
[1644356828178,37.63129096,113.32,113.25,53.66412675]
[1644356829776,50.87429096,113.32,113.25,53.66412675]
[1644356830377,22.7102,113.33,113.25,53.66412675]
[1644356830579,28.7102,113.33,113.25,53.41412675]
[1644356830781,28.7102,113.33,113.25,53.66412675]
[1644356830980,22.7102,113.33,113.26,12.71]
[1644356831180,22.7102,113.33,113.28,13.2389]
[1644356831380,22.7102,113.33,113.29,36.66097732]
[1644356831780,22.7102,113.33,113.29,36.91097732]
[1644356831998,22.7102,113.33,113.29,0.25]
[1644356832200,22.7102,113.33,113.26,62.8397]
[1644356832401,22.7102,113.33,113.28,13.24]
[1644356832600,28.7102,113.33,113.28,13.24]
[1644356832800,28.7102,113.33,113.26,18.96]
[1644356833001,28.7102,113.33,113.27,44.47591738]
[1644356833203,60.83712494,113.33,113.27,44.72591738]
[1644356833802,22.7102,113.33,113.27,57.96691738]
[1644356837208,28.7102,113.33,113.27,57.96691738]
[1644356837609,38.07004194,113.32,113.27,57.71691738]
[1644356837809,38.07004194,113.32,113.26,13.2423]
[1644356838011,49.30604194,113.32,113.23,44.1398]
[1644356838211,49.30604194,113.32,113.22,22.8827]
[1644356838710,49.30604194,113.32,113.22,76.3651282]
[1644356839014,64.65659743,113.32,113.2,12.71]
[1644356839210,64.65659743,113.32,113.18,2.51461037]
[1644356839412,77.36659743,113.32,113.18,21.22461037]
[1644356839617,77.36659743,113.32,113.18,18.71]
[1644356840017,77.36659743,113.32,113.19,41.55257885]
[1644356840217,77.36659743,113.32,113.2,13.2493]
[1644356840415,77.36659743,113.32,113.21,34.29635949]
[1644356840819,81.25884194,113.32,113.21,34.54635949]
[1644356841617,81.25884194,113.32,113.19,12.71]
[1644356841818,81.25884194,113.32,113.21,13.2482]
[1644356842018,83.36659743,113.32,113.21,13.2482]
[1644356842419,92.70775705,113.32,113.19,18.71]
[1644356842618,92.70775705,113.32,113.18,38.91660439]
[1644356842818,14.61131615,113.31,113.18,52.16840439]
[1644356843019,13.2522,113.28,113.18,58.16840439]
[1644356843218,38.07004194,113.27,113.18,58.16840439]
[1644356843821,23.764,113.26,113.18,52.16840439]
[1644356844022,35.06526012,113.25,113.18,52.16840439]
[1644356844724,48.31736012,113.25,113.18,52.16840439]
[1644356847027,48.31736012,113.25,113.18,13.2518]
[1644356847827,54.31736012,113.25,113.18,13.2518]
[1644356848025,48.31736012,113.25,113.18,13.2518]
[1644356848225,54.31736012,113.25,113.18,13.2518]
[1644356848427,48.31736012,113.25,113.18,13.2518]
[1644356849126,48.31736012,113.25,113.19,41.33862561]
[1644356849326,48.31736012,113.25,113.18,13.2518]
[1644356849725,52.9279215,113.25,113.18,13.2518]
[1644356851926,58.9279215,113.25,113.18,13.2518]
[1644356852127,52.9279215,113.25,113.19,35.45199416]
[1644356852327,52.9279215,113.25,113.18,13.2518]
[1644356852528,48.31736012,113.25,113.18,13.2518]
[1644356853527,48.31736012,113.25,113.16,2.51461037]
[1644356853727,24.7305,113.24,113.16,5.27588771]
[1644356853930,13.2549,113.22,113.17,2.51127734]
[1644356854130,22.6159,113.22,113.16,2.51461037]
[1644356854329,22.6159,113.22,113.15,5.02588771]
[1644356854530,40.32903762,113.21,113.15,2.51461037]
[1644356855731,13.2572,113.2,113.15,2.51461037]
[1644356856131,13.2572,113.2,113.14,2.51461037]
[1644356856935,35.06526012,113.19,113.14,2.51461037]
[1644356857137,43.72626012,113.19,113.14,2.51461037]
[1644356857334,13.2596,113.18,113.14,2.51461037]
[1644356857533,40.32903762,113.17,113.14,2.51461037]
[1644356857733,3.03219997,113.16,113.14,2.51461037]
[1644356857934,40.32903762,113.17,113.15,3.03219997]
[1644356858134,40.32903762,113.17,113.13,2.51461037]
[1644356858336,13.2612,113.16,113.13,2.51461037]
[1644356859334,35.06526012,113.15,113.13,2.51461037]
[1644356859534,48.32666012,113.15,113.13,2.51461037]
[1644356859733,48.32666012,113.15,113.13,5.54681034]
[1644356859935,48.32666012,113.15,113.14,2.5106005]
[1644356861539,48.32666012,113.15,113.13,2.51461037]
[1644356861737,13.2614,113.15,113.12,2.51461037]
[1644356861939,13.2614,113.15,113.13,5.90512556]
[1644356862139,13.2614,113.15,113.13,2.51461037]
[1644356862337,13.2614,113.15,113.12,2.51461037]
[1644356862940,13.2614,113.15,113.11,2.51461037]
[1644356863139,13.2649,113.13,113.11,2.51461037]
[1644356863342,13.2649,113.13,113.1,2.51461037]
[1644356863940,13.2649,113.13,113.09,5.02446927]
[1644356864343,48.9215,113.17,113.09,5.02446927]
[1644356864541,48.9215,113.17,113.09,5.04846927]
[1644356864742,54.9215,113.17,113.09,2.5338589]
[1644356865142,35.23713241,113.16,113.1,48.73117096]
[1644356865771,13.2625,113.14,113.1,48.73117096]
[1644356866766,13.2614,113.15,113.1,48.73117096]
[1644356866964,13.2614,113.15,113.08,0.024]
[1644356867164,36.2501,113.15,113.08,0.024]
[1644356867863,36.2501,113.15,113.08,2.53152009]
[1644356868065,36.2501,113.15,113.09,34.30035939]
[1644356869369,40.15716533,113.14,113.09,34.30035939]
[1644356869566,13.2625,113.14,113.09,34.30035939]
[1644356871569,13.2613,113.15,113.09,34.30035939]
[1644356871974,24.5758,113.17,113.09,40.30035939]
[1644356872271,24.5758,113.17,113.1,12.71]
[1644356872476,24.5758,113.17,113.11,44.16224535]
[1644356872871,31.33149702,113.16,113.11,44.16224535]
[1644356873272,37.8354,113.17,113.11,44.16224535]
[1644356873872,37.8354,113.17,113.1,0.024]
[1644356874073,43.8354,113.17,113.09,6.0]
[1644356874275,45.94315549,113.17,113.08,0.024]
[1644356874478,23.0328,113.16,113.08,0.024]
[1644356874672,13.2632,113.14,113.08,0.024]
[1644356874874,13.2632,113.14,113.08,42.34588223]
[1644356875074,13.2632,113.14,113.08,48.34588223]
[1644356876274,13.2632,113.14,113.08,48.59588223]
[1644356876875,13.2632,113.14,113.08,48.34588223]
[1644356877975,27.19089548,113.13,113.08,48.34588223]
[1644356878178,13.2632,113.14,113.08,48.34588223]
[1644356879177,43.69279141,113.13,113.08,48.34588223]
[1644356879378,56.95619141,113.13,113.08,48.34588223]
[1644356879581,13.2634,113.13,113.08,48.34588223]
[1644356881682,51.51741344,113.13,113.08,48.34588223]
[1644356881880,51.51741344,113.13,113.05,13.2887]
[1644356882088,53.62516893,113.13,113.05,0.024]
[1644356882781,13.2705,113.09,113.02,0.024]
[1644356882981,13.78041607,113.09,113.02,0.024]
[1644356883382,24.18117156,113.09,113.02,0.024]
[1644356883983,47.71787156,113.09,112.99,0.024]
[1644356884182,12.71,113.08,112.97,5.04258327]
[1644356884391,13.2761,113.05,112.98,0.024]
[1644356884589,23.4731,113.05,112.97,46.44874433]
[1644356884786,23.4731,113.05,112.97,46.47274433]
[1644356885687,13.2761,113.05,112.97,46.47274433]
[1644356885887,19.2761,113.05,112.97,46.47274433]
[1644356886088,13.2761,113.05,112.97,46.47274433]
[1644356886289,13.2761,113.05,112.97,59.99794433]
[1644356887386,43.63622287,113.05,112.97,59.99794433]
[1644356887587,13.2761,113.05,112.97,59.99794433]
[1644356888088,19.2761,113.05,112.97,59.99794433]
[1644356889088,13.2761,113.05,112.97,59.99794433]
[1644356889289,13.2719,113.06,112.97,61.27946494]
[1644356889490,13.2719,113.06,112.98,0.024]
[1644356889693,13.2719,113.06,113.0,13.2717]
[1644356889890,13.2719,113.06,113.01,39.49772659]
[1644356890898,13.2711,113.07,113.01,52.76912659]
[1644356891098,13.2711,113.07,113.01,53.01912659]
[1644356892595,24.7646,113.08,113.01,53.01912659]
[1644356892796,38.0345,113.08,113.01,53.01912659]
[1644356893895,13.2699,113.08,113.01,53.01912659]
[1644356894096,13.2686,113.09,113.01,54.3006472]
[1644356894295,13.2686,113.09,113.01,59.04312659]
[1644356894495,13.2686,113.09,113.01,53.04312659]
[1644356894699,13.2686,113.09,113.01,59.04312659]
[1644356894895,13.2686,113.09,113.01,53.04312659]
[1644356897799,52.64938531,113.09,113.01,53.04312659]
[1644356898000,52.64938531,113.09,113.01,52.79312659]
[1644356898200,2.10775549,113.08,113.01,39.49772659]
[1644356898400,13.2736,113.06,113.01,39.52172659]
[1644356898602,13.2736,113.06,113.0,0.024]
[1644356898800,2.10775549,113.05,112.98,0.024]
[1644356899000,2.10775549,113.05,112.97,0.024]
[1644356899199,44.2554,113.05,112.97,0.024]
[1644356899601,13.2767,113.03,112.97,53.16063902]
[1644356899801,13.2767,113.03,112.97,53.41063902]
[1644356900005,13.2767,113.03,112.97,53.16063902]
[1644356900205,13.2767,113.03,112.97,53.13663902]
[1644356901509,13.2767,113.03,112.97,53.38663902]
[1644356902311,13.2767,113.03,112.97,53.13663902]
[1644356902509,40.27486625,113.02,112.97,53.13663902]
[1644356902711,13.2778,113.01,112.97,39.86033902]
[1644356902910,12.71,113.05,112.97,39.86033902]
[1644356903110,74.0715,113.07,112.98,0.024]
[1644356903317,74.0715,113.07,112.97,39.88433902]
[1644356903616,13.2753,113.03,112.98,0.024]
[1644356903812,13.2753,113.03,112.97,39.86033902]
[1644356905912,13.2753,113.03,112.97,53.13683902]
[1644356908339,13.2753,113.03,112.98,2.51490892]
[1644356908539,13.2753,113.03,112.97,53.16083902]
[1644356910141,13.2753,113.03,112.97,0.024]
[1644356910340,19.2753,113.03,112.97,2.54114617]
[1644356910541,44.94295549,113.03,112.95,2.51461037]
[1644356910741,44.94295549,113.03,112.95,2.53861037]
[1644356910940,12.71,113.02,112.95,2.53861037]
[1644356911142,13.2815,113.0,112.95,0.024]
[1644356911348,13.2815,113.0,112.94,5.03175654]
[1644356911349,13.2815,113.0,112.94,0.024]
[1644356911542,13.2815,113.0,112.93,2.51714617]
[1644356911744,12.71,112.99,112.93,0.024]
[1644356911943,12.71,112.99,112.92,2.53861037]
[1644356911944,36.1618,112.99,112.92,2.53861037]
[1644356912141,38.26955549,112.99,112.92,0.024]
[1644356912343,38.26955549,112.99,112.91,5.05575654]
[1644356912544,38.26955549,112.99,112.92,42.23671379]
[1644356912743,38.26955549,112.99,112.92,42.26071379]
[1644356912943,51.61015763,112.97,112.92,42.26071379]
[1644356913146,51.61015763,112.97,112.91,2.51461037]
[1644356913343,64.32015763,112.97,112.91,2.51461037]
[1644356913544,64.32015763,112.97,112.9,2.51461037]
[1644356913845,66.42791312,112.97,112.9,2.53861037]
[1644356914043,72.42791312,112.97,112.9,2.53861037]
[1644356914446,72.42791312,112.97,112.9,0.024]
[1644356914645,72.42791312,112.97,112.89,5.05379236]
[1644356915048,72.42791312,112.97,112.89,0.024]
[1644356915049,88.41,112.96,112.89,0.024]
[1644356915245,13.2921,112.94,112.88,2.51461037]
[1644356915445,12.71,112.93,112.88,2.53861037]
[1644356915746,14.81775549,112.93,112.88,2.51461037]
[1644356915944,37.06934011,112.92,112.88,2.51461037]
[1644356916147,50.36124011,112.92,112.88,2.51461037]
[1644356916345,2.10775549,112.91,112.86,2.53919236]
[1644356916546,12.71,112.93,112.86,1.037e-05]
[1644356916748,47.929,112.92,112.86,1.037e-05]
[1644356916946,14.81775549,112.91,112.86,1.037e-05]
[1644356917145,28.11045549,112.91,112.86,1.037e-05]